[Event "Khanty-Mansiysk FIDE GP (Women)"]
[Site "Khanty-Mansiysk"]
[Date "2014.04.16"]
[Round "7"]
[White "Batchimeg, Tuvshintugs"]
[Black "Muminova, Nafisa"]
[Result "0-1"]
[ECO "E59"]
[WhiteElo "2340"]
[BlackElo "2321"]
[Annotator "ChessBase Website"]
[PlyCount "56"]
[EventDate "2014.04.09"]
[EventType "tourn"]
[EventRounds "11"]
[EventCountry "RUS"]
[EventCategory "10"]
[SourceTitle "CBM 160"]
[Source "ChessBase"]
[SourceDate "2014.05.15"]
[SourceVersion "1"]
[SourceVersionDate "2014.05.15"]
[SourceQuality "1"]
[TimeControl "40/5400+30:1800+30"]
[WhiteClock "1:30:00"]
[BlackClock "1:30:00"]

1. d4 {[%emt 0:00:00]} Nf6 {[%emt 0:00:00]} 2. c4 {[%emt 0:00:00]} e6 {[%emt 0:
00:00]} 3. Nc3 {[%emt 0:00:00]} Bb4 {[%emt 0:00:00]} 4. e3 {[%emt 0:00:01]} O-O
{[%emt 0:00:29]} 5. Bd3 {[%emt 0:00:09]} d5 {[%emt 0:00:10]} 6. a3 {[%emt 0:00:
17]} Bxc3+ {[%emt 0:00:38]} 7. bxc3 {[%emt 0:00:04]} dxc4 {[%emt 0:00:08]} 8.
Bxc4 {[%emt 0:00:09]} c5 {[%emt 0:00:07]} 9. Nf3 {[%emt 0:00:57]} Qc7 {[%emt 0:
00:28]} 10. Ba2 {[%emt 0:01:51]} b6 {[%emt 0:00:21]} 11. O-O {[%emt 0:00:15]}
Nc6 {[%emt 0:06:19]} 12. Bb2 {[%emt 0:13:21]} (12. Re1 e5 13. h3 e4 14. Nd2 Re8
15. Nf1 Ba6 16. c4 Na5 17. dxc5 Rad8 18. Qa4 Qxc5 19. Bb2 Nd7 20. Ng3 Qc6 21.
Qxc6 Nxc6 22. Nf5 {1/2-1/2 (22) Sebenik,M (2527)-Lenic,L (2617) Sentjur 2013})
12... Ba6 {[%emt 0:01:01]} 13. Re1 {[%emt 0:01:13]} Na5 $146 {[%emt 0:00:42]} (
13... Rad8 14. e4 e5 15. d5 Ne7 16. c4 Ng6 17. g3 Bc8 18. Nd2 h5 19. Bb1 h4 20.
Nf1 Qd7 21. Bc1 Qh3 22. Ra2 Rd6 23. Bd3 Nh7 24. Ne3 hxg3 25. fxg3 Ne7 26. Rf2
Nf6 27. Bb2 Nd7 28. Nf5 Nxf5 29. exf5 b5 30. Bxe5 Nxe5 31. Rxe5 bxc4 32. Bxc4
Qh6 33. Qd2 Qf6 34. Qf4 Ba6 35. Rfe2 Qd8 36. Bxa6 Rxa6 37. Qc4 Rxa3 38. Qxc5
Rd3 39. R2e3 Rd2 40. Re2 Rd3 41. Kg2 Rd1 42. f6 gxf6 43. Rh5 {Ibragimov,I 
(2579)-Akopian,V (2660) Kazan 2001 1-0 (65)}) 14. e4 {[%emt 0:15:24]} Bc4 {
[%emt 0:08:09]} 15. Bb1 {[%emt 0:17:03]} Nb3 {[%emt 0:07:40]} 16. e5 {[%emt 0:
01:04]} Nd5 {[%emt 0:01:44]} 17. Nd2 {[%emt 0:02:38]} Nxd2 {[%emt 0:07:49]} 18.
Qxd2 {[%emt 0:01:23]} f5 {[%emt 0:00:31]} 19. exf6 {[%emt 0:05:02]} Rxf6 {
[%emt 0:00:08]} 20. Be4 {[%emt 0:00:47]} Raf8 {[%emt 0:01:30]} 21. f3 {[%emt 0:
00:36]} Rh6 {[%emt 0:04:55]} 22. g3 {[%emt 0:04:40]} Nf6 {[%emt 0:01:20]} 23.
Bd3 {[%emt 0:11:41]} Bd5 {[%emt 0:00:37]} 24. Rf1 $4 {[%emt 0:00:40] The
players essayed a topical variation of the Rubinstein Nimzo-Indian and the
game was approximately equal for a while, both of them trying to do as much as
they could with their strategical advantages. Disaster came for the Mongolian
player when she moved 24.Rf1?? missing the devastating 24...Ng4!! After that
happened the game was basically over.} (24. Re3) 24... Ng4 {[%emt 0:01:08]} 25.
Qg5 {[%emt 0:17:05]} Nxh2 {[%emt 0:01:36]} 26. f4 {[%emt 0:02:01]} Nxf1 {
[%emt 0:01:59]} 27. Rxf1 {[%emt 0:01:46]} Rh1+ {[%emt 0:01:02]} 28. Kf2 {
[%emt 0:00:41]} Rh2+ {[%emt 0:00:30]} 0-1